{"text_format":"1","workbook":"xlsx","n_sheets":1,"sheets":["3210"],"not_rendered":{"charts":0,"images":0,"macros":0,"external_links":0,"defined_names":0,"comments":0,"pivot_tables":0},"unopened":[],"bounds":{"document_bytes":16777216,"sheet_cells":100000,"rows_first":2000,"rows_last":500,"rows_between":2000,"halvings":0,"cell_chars":16384,"cell_head_chars":4096},"cells_cut":0,"cells_raw":0,"read":"whole","date_system":"1900"}

{"sheet":"3210","index":0,"n_rows":55,"n_cols":13,"rows_kept":55,"cut":false,"hidden":false,"merged":[[54,9,54,12],[35,10,36,12],[41,0,41,12],[45,0,45,12],[48,0,48,12],[50,0,50,6],[50,9,50,12],[35,0,37,0],[35,1,37,1],[35,2,37,2],[35,3,37,3],[35,4,36,6],[35,7,36,9],[34,1,34,12],[19,0,20,0],[26,1,26,12],[51,9,51,12],[53,0,53,6],[53,9,53,12],[28,10,28,12],[28,1,29,3],[24,0,24,11],[19,3,19,5],[19,6,19,8],[19,1,20,2],[21,1,21,2],[22,1,22,2],[23,1,23,2],[19,9,19,11],[17,1,17,12],[6,4,6,12],[7,4,7,12],[8,4,8,12],[9,4,9,12],[11,1,11,7],[12,1,12,3],[12,4,12,6],[12,7,12,9],[0,10,1,12],[2,0,2,12],[3,0,3,12],[4,4,4,12],[5,4,5,12],[30,1,30,3],[31,1,31,3],[32,1,32,3],[28,4,28,6],[28,7,28,9]]}
[null,null,null,null,null,null,null,null,null,null,"ЗАТВЕРДЖЕНО\nНаказ Міністерства фінансів України\n26 серпня 2014 року N 836\n(у редакції наказу Міністерства фінансів України\nвід 15 листопада 2018 року N 908)"]
[]
["Звіт"]
["про виконання паспорта бюджетної програми місцевого бюджету за 2019 рік"]
["1.","0100000",null,null,"Дунаєвецька міська рада"]
[null,"(КТПКВК МБ)",null,null,"(найменування головного розпорядника)"]
["2.","0110000",null,null,"Дунаєвецька міська рада"]
[null,"(КТПКВК МБ)",null,null,"(найменування відповідального виконавця)"]
["3.","0113210","1050",null,"Організація та проведення громадських робіт"]
[null,"(КТПКВК МБ)","(КФКВК)",null,"(найменування бюджетної програми)"]
[]
["4.","Видатки (надані кредити) за бюджетною програмою:"]
[null,"Затверджено у паспорті бюджетної програми",null,null,"Касові видатки (надані кредити)",null,null,"Відхилення"]
[null,"загальний фонд","спеціальний фонд","усього","загальний фонд","спеціальний фонд","усього","загальний фонд","спеціальний фонд","усього"]
[null,1,2,3,4,5,6,7,8,9]
[null,27000,null,27000,26202.240000000002,26202.21,{"$f":"E16+F16","v":52404.45},-797.76,{"$f":"F16-C16","v":26202.21},{"$f":"G16-D16","v":25404.449999999997}]
[]
["5.","Напрями використання бюджетних коштів:"]
[null,null,null,null,null,null,null,null,null,null,null,"(грн)"]
["N\nз/п","Напрями використання  бюджетних коштів",null,"Затверджено у паспорті бюджетної програми",null,null,"Касові видатки (надані кредити)",null,null,"Відхилення"]
[null,null,null,"загальний фонд","спеціальний фонд","усього","загальний фонд","спеціальний фонд","усього","загальний фонд","спеціальний фонд","усього"]
[1,2,null,3,4,5,6,7,8,9,10,11]
[1,"Організація та проведення громадських робіт",null,27000,null,27000,26202.240000000002,26202.21,{"$f":"G23+H23","v":52404.45},-797.76,{"$f":"H23-E23","v":26202.21},{"$f":"I23-F23","v":25404.449999999997}]
[null,"Усього",null,27000,null,27000,26202.240000000002,26202.21,{"$f":"I23","v":52404.45},-797.76,{"$f":"K23","v":26202.21},{"$f":"L23","v":25404.449999999997}]
[" Економія  виникла в звязку із проведенням касових видатків відповідно до заключених договорів. Видатки по спеціальному фонду здійснені згідно фінансування відповідно до Угоди про спільну діяльність між Хмельницьким обласним центром зайнятості та Дунаєвецькою міською радою. "]
[]
["6.","Видатки (надані кредити) на реалізацію місцевих/регіональних програм, які виконуються в межах бюджетної програми:"]
[null,null,null,null,null,null,null,null,null,null,null,null,"(грн)"]
[null,"Найменування місцевої / регіональної програми",null,null,"Затверджено у паспорті бюджетної програми",null,null,"Касові видатки (надані кредити)",null,null,"Відхилення"]
[null,null,null,null,"загальний фонд","спеціальний фонд","усього","загальний фонд","спеціальний фонд","усього","загальний фонд","спеціальний фонд","усього"]
[null,1,null,null,2,3,4,5,6,7,8,9,10]
[null,"Програма організації громадських робіт на 2017-2020 роки",null,null,27000,null,27000,26202.240000000002,26202.21,{"$f":"H32+I32","v":52404.45},{"$f":"H32-E32","v":-797.7599999999984},{"$f":"I32-F32","v":26202.21},{"$f":"K32+L32","v":25404.45}]
[null,"Усього",null,null,27000,null,27000,26202.240000000002,26202.21,{"$f":"J32","v":52404.45},-797.76,26202.21,{"$f":"M32","v":25404.45}]
[]
["7.","Результативні показники бюджетної програми та аналіз їх виконання:"]
["N\n з/п","Показники","Одиниця виміру","Джерело інформації","Затверджено у паспорті бюджетної програми",null,null,"Фактичні результативні показники, досягнуті за рахунок касових видатків (наданих кредитів)",null,null,"Відхилення"]
[]
[null,null,null,null,"загальний фонд","спеціальний фонд","усього","загальний фонд","спеціальний фонд","усього","загальний фонд","спеціальний фонд","усього"]
[1,2,3,4,5,6,7,8,9,10,11,12,13]
[null,"затрат"]
[null,"видатки на організацію громадських робіт","грн","розрахунок",27000,null,27000,26202,26202,{"$f":"H41+I41","v":52404},{"$f":"H41-E41","v":-798},{"$f":"I41-F41","v":26202},{"$f":"J41-G41","v":25404}]
[" Економія  виникла в звязку із проведенням касових видатків відповідно до заключених договорів. Видатки по спеціальному фонду здійснені згідно фінансування відповідно до Угоди про спільну діяльність між Хмельницьким обласним центром зайнятості та Дунаєвецької міською радою, які не було заплановано. "]
[null,"продукту"]
[null,"кількість старостатів, які потребують працівників на громадських роботах","од.","розрахунок",3,null,3,3,3,3,null,-3,-3]
[null,"кількість працівників зайнятих на умовах громадських робіт","од.","розрахунок","3",null,"3","3","3","3",null,"-3","-3"]
["Кількість старостатів, які потребують працівників на громадських роботах та працівників зайнятих на умовах громадських робіт на протязі року залишається незмінною. Проте, різниця виникла за рахунок того, що на початок року планувалося фінансування лише по загальному фонду, а видатки по спеціальному фонду здійснені згідно фінансування відповідно до Угоди про спільну діяльність між Хмельницьким обласним центром зайнятості та Дунаєвецької міською радою. "]
[3,"ефективності"]
[null,"середні витрати на утримання  1 працівника за рахунок бюджетних коштів","тис.грн.","розрахунок",{"$f":"E41/E45","v":9000},null,{"$f":"G41/G45","v":9000},{"$f":"H41/H45","v":8734},null,{"$f":"H48","v":8734},{"$f":"J48-G48","v":-266},{"$f":"I48-F48","v":0},{"$f":"J48-G48","v":-266}]
[" Економія  виникла в звязку із проведенням касових видатків відповідно до заключених договорів. "]
[]
["Міський голова",null,null,null,null,null,null,null,null,"В.В.Заяць"]
[null,null,null,null,null,null,null,"(підпис)",null,"(ініціали та прізвище)"]
[]
["Головний бухгалтер ",null,null,null,null,null,null,null,null,"О.П.Рищенко"]
[null,null,null,null,null,null,null,"(підпис)",null,"(ініціали та прізвище)"]